fUSD/lending_fUSD_20260115
["ID","MTS","AMOUNT","RATE_DAILY","PERIOD"]
[401987242,1768439435426,-150.0,0.0001754,2]
[401987243,1768439435436,-150.0,0.0001754,2]
[401987244,1768439435446,-150.0,0.0001754,2]
[401987245,1768439435456,-150.0,0.0001754,2]
[401987246,1768439435466,-150.0,0.0001754,2]
[401987247,1768439435475,-150.0,0.0001754,2]
[401987248,1768439435485,-150.0,0.0001754,2]
[401987249,1768439435494,-150.0,0.0001754,2]
[401987250,1768439435504,-150.97440131,0.0001754,2]
[401987251,1768439435513,-454.23151527,0.00017566,2]
[401987252,1768439435524,-231.23799714,0.00017595,2]
[401987253,1768439435535,-150.0,0.00017595,2]
[401987254,1768439435545,-234.30865662,0.00017595,2]
[401987255,1768439435555,-500.0,0.00017595,2]
[401987256,1768439435567,-159.6010049,0.00017595,2]
[401987257,1768439435577,-150.0,0.00017595,2]
[401987258,1768439435587,-150.0,0.00017595,2]
[401987259,1768439435598,-150.0,0.00017595,2]
[401987260,1768439435607,-150.0,0.00017595,2]
[401987261,1768439435617,-171.05172936,0.00017595,2]
[401987262,1768439435627,-150.0,0.0001765,2]
[401987263,1768439435637,-500.0,0.0001765,2]
[401987264,1768439435647,-150.0,0.0001765,2]
[401987265,1768439435656,-150.0,0.0001765,2]
[401987266,1768439435665,-150.0,0.0001765,2]
[401987267,1768439435675,-150.0,0.0001765,2]
[401987268,1768439435684,-842.93,0.00017676,2]
[401987269,1768439435694,-500.0,0.00017676,2]
[401987270,1768439435703,-500.0,0.00017704,2]
[401987271,1768439435712,-500.0,0.00017704,2]
[401987272,1768439435722,-500.0,0.00017704,2]
[401987273,1768439435731,-500.0,0.00017704,2]
[401987274,1768439435740,-500.0,0.00017704,2]
[401987275,1768439435751,-200.0,0.00017704,2]
[401987276,1768439435760,-150.0,0.00017704,2]
[401987277,1768439435770,-185.36700145,0.00017704,2]
[401987278,1768439435779,-150.0,0.00017704,2]
[401987279,1768439435789,-154.47382576,0.00017704,2]
[401987280,1768439435798,-690.97,0.00017728,2]
[401987281,1768439435808,-2182.06,0.00017728,2]
[401987282,1768439435819,-4992.62,0.00017728,2]
[401987283,1768439435828,-150.99,0.00017728,2]
[401987284,1768439435838,-9999.99,0.00017728,2]
[401987285,1768439435847,-6889.28,0.00017728,2]
[401987286,1768439435857,-4517.32,0.00017728,2]
[401987287,1768439435866,-157.03274317,0.00017759,2]
[401987288,1768439435876,-500.0,0.00017773,2]
[401987289,1768439435885,-500.0,0.00017773,2]
[401987290,1768439435894,-500.0,0.00017773,2]
[401987291,1768439435904,-500.0,0.00017773,2]
[401987292,1768439435913,-500.0,0.00017773,2]
[401987293,1768439435922,-500.0,0.00017773,2]
[401987294,1768439435932,-250.0,0.00017782,2]
[401987295,1768439435941,-300.0,0.00017782,2]
[401987296,1768439435951,-533.8,0.00017799,2]
[401987297,1768439435960,-4176.4,0.00017804,2]
[401987298,1768439435969,-420.0,0.00017804,2]
[401987299,1768439435979,-174.30171844,0.00017808,2]
[401987300,1768439435988,-168.3888056,0.00017849,2]
[401987301,1768439435998,-1680.0,0.00017893,2]
[401987302,1768439436008,-194.44,0.00017911,2]
[401987303,1768439436018,-842.93,0.0001795,2]
[401987304,1768439436027,-842.98365911,0.00018224,2]
[401987305,1768439436036,-500.0,0.00018224,2]
[401987306,1768439436046,-533.8,0.00018442,2]
[401987307,1768439436055,-196.00514886,0.00018458,2]
[401987308,1768439436064,-824.8,0.00018558,2]
[401987309,1768439436074,-5661.50492603,0.00018605,5]
[401987310,1768439436083,-500.0,0.00018772,2]
[401987311,1768439436092,-151.25,0.000188,2]
[401987312,1768439436102,-35959.62209575,0.00018849,2]
[401987313,1768439436111,-155.04,0.00018943,2]
[401987314,1768439436121,-500.0,0.00018999,2]
[401987315,1768439436130,-500.0,0.00018999,2]
[401987316,1768439436139,-500.0,0.00018999,2]
[401987317,1768439436149,-500.0,0.00018999,2]
[401987318,1768439436158,-500.0,0.00018999,2]
[401987319,1768439436168,-200.0,0.00019082,2]
[401987320,1768439436177,-3503.45,0.00019085,2]
[401987321,1768439436186,-533.8,0.00019085,2]
[401987322,1768439436196,-2000.0,0.000192,2]
[401987323,1768439436205,-284.40447541,0.00019218,2]
[401987324,1768439436214,-500.0,0.0001932,2]
[401987325,1768439436443,-25478.26317983,0.00019326,2]
[401987326,1768439436455,-9999.99,0.00019339,2]
[401987327,1768439436465,-18546.91,0.00019339,2]
[401987328,1768439436474,-18680.5713333,0.00019424,2]
[401987329,1768439436483,-587.0,0.0001946,2]
[401987330,1768439436493,-2351.0,0.00019656,2]
[401987331,1768439436501,-533.8,0.00019729,2]
[401987332,1768439436511,-500.0,0.00019868,2]
[401987333,1768439436520,-824.8,0.00019928,2]
[401987334,1768439436528,-5661.50492603,0.00019936,10]
[401987335,1768439436537,-4176.4,0.00020086,2]
[401987336,1768439436547,-250.0,0.00020164,2]
[401987337,1768439436556,-1095.11627938,0.00020259,2]
[401987338,1768439436566,-500.0,0.00020416,2]
[401987339,1768439436575,-500.0,0.00020767,2]
[401987340,1768439436585,-1075.44369593,0.00020884,2]
[401987341,1768439436594,-500.0,0.0002095,2]
[401987342,1768439436603,-500.0,0.00020964,2]
[401987343,1768439436612,-5661.50492603,0.00021266,15]
[401987344,1768439436621,-500.0,0.00021512,2]
[401987345,1768439436630,-482.52,0.00021513,2]
[401987346,1768439436639,-3292.0,0.00021591,2]
[401987347,1768439436648,-278.09,0.00021787,2]
[401987348,1768439436657,-5000.0,0.00021918,2]
[401987349,1768439436667,-25478.26317983,0.00022259,2]
[401987350,1768439436676,-339.21,0.00022306,2]
[401987351,1768439436685,-18680.5713333,0.00022347,2]
[401987352,1768439436694,-4176.4,0.00022368,2]
[401987353,1768439436703,-194.44,0.00022389,2]
[401987354,1768439436712,-5661.50492603,0.00022596,21]
[401987355,1768439436721,-500.0,0.00022598,2]
[401987356,1768439436730,-2000.0,0.000229,2]
[401987357,1768439436740,-500.0,0.00023151,2]
[401987358,1768439436750,-63437.03580709,0.00023349,2]
[401987359,1768439436760,-279.94,0.00023371,2]
[401987360,1768439436768,-500.0,0.00023471,2]
[401987361,1768439436777,-3723.0,0.00023718,2]
[401987362,1768439436786,-500.0,0.00023829,2]
[401987363,1768439436795,-500.0,0.00023829,2]
[401987364,1768439436804,-500.0,0.00023829,2]
[401987365,1768439436813,-500.0,0.00023829,2]
[401987366,1768439436822,-500.0,0.00023829,2]
[401987367,1768439436831,-4600.0,0.000239,8]
[401987368,1768439436841,-5661.50492603,0.00023926,26]
[401987369,1768439436850,-1095.11627938,0.00024017,2]
[401987370,1768439436860,-151.0,0.00024194,7]
[401987371,1768439436871,-500.0,0.00024196,2]
[401987372,1768439436880,-500.0,0.00024196,2]
[401987373,1768439436891,-500.0,0.00024196,2]
[401987374,1768439436900,-500.0,0.00024196,2]
[401987375,1768439436910,-5440.7436422,0.00024197,2]
[401987376,1768439436920,-14134.2696567,0.00024197,2]
[401987377,1768439436929,-125023.9406264,0.00024197,2]
[401987378,1768439436938,-975.0612454,0.00024197,2]
[401987379,1768439436948,-6227.9935081,0.00024197,2]
[401987380,1768439436957,-151.0,0.00024197,2]
[401987381,1768439436966,-151.0,0.00024197,2]
[401987382,1768439436976,-530.95,0.00024225,30]
[401987383,1768439436985,-150.0,0.00024225,2]
[401987384,1768439436997,-94898.0116475,0.00024249,2]
[401987385,1768439437006,-128400.3765,0.00024249,2]
[401987386,1768439437015,-4176.4,0.0002465,2]
[401987387,1768439437025,-165.07,0.0002465,2]
[401987388,1768439437034,-226.693918,0.00024657,7]
[401987389,1768439437043,-1000.0,0.00024658,2]
[401987390,1768439437053,-2563.74337966,0.0002466,2]
[401987391,1768439437063,-119170.82152384,0.0002466,2]
[401987392,1768439437072,-266.490892,0.0002466,7]
[401987393,1768439437081,-266.490892,0.0002466,7]
[401987394,1768439437091,-266.490892,0.0002466,7]
[401987395,1768439437101,-266.490892,0.0002466,7]
[401987396,1768439437111,-151.0,0.0002466,7]
[401987397,1768439437120,-151.0,0.0002466,7]
[401987398,1768439437129,-519.4781395,0.000247,2]
[401987399,1768439437138,-2422.31542074,0.000247,2]
[401987400,1768439437148,-263.23297037,0.00024799,2]
[401987401,1768439437157,-500.0,0.00024799,2]
[401987402,1768439437167,-500.0,0.00024799,2]
[401987403,1768439437176,-500.0,0.00024799,2]
[401987404,1768439437185,-500.0,0.00024799,2]
[401987405,1768439437194,-500.0,0.00024799,2]
[401987406,1768439437203,-500.0,0.00024799,2]
[401987407,1768439437212,-361.82992148,0.00024799,2]
[401987408,1768439437222,-500.0,0.00024799,2]
[401987409,1768439437231,-500.0,0.00024799,2]
[401987410,1768439437240,-151.0,0.000248,7]
[401987411,1768439437249,-151.0,0.000248,7]
[401987412,1768439437258,-151.0,0.000248,7]
[401987413,1768439437267,-151.0,0.000248,7]
[401987414,1768439437277,-151.0,0.000248,7]
[401987415,1768439437286,-428384.2712672,0.000248,3]
[401987416,1768439440006,-1398.18466805,0.000248,3]
[401987423,1768439440563,-400.5200004,0.000248,3]
[401987424,1768439440575,-2904.55634819,0.000248,3]
[401987425,1768439440610,-353.47176662,0.000248,3]
[401987426,1768439440624,-72568.06015054,0.000248,3]
[401987427,1768439440634,-266.490892,0.000248,7]
[401987428,1768439440644,-266.490892,0.000248,7]
[401987429,1768439440654,-266.490892,0.000248,7]
[401987430,1768439440665,-266.490892,0.000248,7]
[401987431,1768439440675,-151.0,0.000248,7]
[401987432,1768439440685,-151.0,0.000248,7]
[401987433,1768439440696,-597.69733441,0.00024899,2]
[401987434,1768439440706,-500.0,0.00024899,2]
[401987435,1768439440715,-500.0,0.00024899,2]
[401987436,1768439440725,-500.0,0.00024899,2]
[401987437,1768439440735,-500.0,0.00024899,2]
[401987438,1768439440744,-474.43522182,0.00024899,2]
[401987439,1768439440754,-500.0,0.00024899,2]
[401987440,1768439440764,-500.0,0.00024899,2]
[401987441,1768439440774,-500.0,0.00024899,2]
[401987442,1768439440784,-500.0,0.00024899,2]
[401987443,1768439440794,-500.0,0.00024899,2]
[401987444,1768439440804,-273.23530198,0.00024899,2]
[401987445,1768439440814,-163.0,0.000249,3]
[401987446,1768439440825,-163.0,0.000249,7]
[401987447,1768439440835,-151.0,0.000249,2]
[401987448,1768439440846,-151.0,0.000249,7]
[401987449,1768439440856,-151.0,0.000249,7]
[401987450,1768439440867,-151.0,0.000249,7]
[401987451,1768439440876,-151.0,0.000249,7]
[401987452,1768439440886,-174.911416,0.000249,7]
[401987453,1768439440896,-151.0,0.000249,2]
[401987454,1768439440907,-515.22,0.000249,2]
[401987455,1768439440917,-6100.0,0.000249,9]
[401987456,1768439440926,-588897.485109,0.000249,3]
[401987457,1768439440936,-151.0,0.000249,7]
[401987458,1768439440945,-151.0,0.000249,7]
[401987459,1768439440955,-3361.74,0.00025026,2]
[401987460,1768439440963,-25478.26317983,0.00025193,2]
[401987461,1768439440972,-3102.59192466,0.00025256,31]
[401987462,1768439440981,-1075.44369593,0.00025267,2]
[401987463,1768439440991,-18680.5713333,0.00025269,2]
[401987464,1768439441000,-500.0,0.00025329,2]
[401987465,1768439441187,-500.0,0.00025329,2]
[401987466,1768439441252,-500.0,0.00025329,2]
[401987467,1768439441263,-500.0,0.00025679,2]
[401987468,1768439441272,-1000.0,0.00025679,2]
[401987469,1768439441283,-500.0,0.00025688,7]
[401987470,1768439441292,-151.0,0.00026112,7]
[401987471,1768439441302,-500.0,0.00026112,2]
[401987472,1768439441314,-500.0,0.00026372,2]
[401987473,1768439441324,-151.0,0.00026373,7]
[401987474,1768439441333,-151.0,0.00026373,7]
[401987475,1768439441343,-151.0,0.00026373,7]
[401987476,1768439441353,-151.0,0.00026373,7]
[401987477,1768439441362,-151.0,0.00026373,7]
[401987478,1768439441374,-151.0,0.00026373,7]
[401987479,1768439441386,-185.17054,0.00026373,7]
[401987480,1768439441395,-2000.0,0.000266,2]
[401987481,1768439441405,-339.21,0.00026814,2]
[401987482,1768439441414,-194.44,0.00026867,2]
[401987483,1768439441424,-4176.4,0.00026932,2]
[401987484,1768439441434,-504.0,0.00027137,2]
[401987485,1768439441444,-1213.9940002,0.00027298,2]
[401987486,1768439441454,-27896.6118943,0.00027298,2]
[401987487,1768439441464,-1389.6531888,0.00027298,2]
[401987488,1768439441475,-345.0,0.00027315,2]
[401987489,1768439441485,-150.0,0.00027369,2]
[401987490,1768439441494,-891.4,0.00027397,2]
[401987491,1768439441503,-869.4,0.00027397,2]
[401987492,1768439441513,-871.31496156,0.00027397,2]
[401987493,1768439441522,-261.39448847,0.00027397,2]
[401987494,1768439441531,-1776.0,0.00027397,7]
[401987495,1768439441540,-500.0,0.00027397,20]
[401987496,1768439441550,-300.0,0.00027397,2]
[401987497,1768439441559,-446.24064,0.00027397,7]
[401987498,1768439441570,-446.24064,0.00027397,7]
[401987499,1768439441580,-446.24064,0.00027397,7]
[401987500,1768439441589,-446.24064,0.00027397,7]
[401987501,1768439441598,-446.24064,0.00027397,7]
[401987502,1768439441608,-446.24064,0.00027397,7]
[401987503,1768439441617,-446.24064,0.00027397,7]
[401987504,1768439441627,-446.24064,0.00027397,7]
[401987505,1768439441636,-515.22,0.000274,2]
[401987506,1768439441645,-1095.11627938,0.00027774,2]
[401987507,1768439441655,-3102.59192466,0.00027917,40]
[401987508,1768439441664,-168.0,0.00027939,2]
[401987509,1768439441674,-270.8786756,0.0002799,2]
[401987510,1768439441683,-6224.5754795,0.0002799,2]
[401987511,1768439441693,-310.0735385,0.0002799,2]
[401987512,1768439441702,-236.93,0.000281,14]
[401987513,1768439441712,-25478.26317983,0.00028126,2]
[401987514,1768439441723,-18680.5713333,0.00028192,2]
[401987515,1768439441734,-279.94,0.000283,2]
[401987516,1768439441743,-2422.3154207,0.00028321,2]
[401987517,1768439441753,-504.0,0.00028492,3]
[401987518,1768439441762,-978.0,0.00028502,2]
[401987519,1768439441773,-168.0,0.00028706,2]
[401987520,1768439441783,-168.0,0.00028877,2]
[401987521,1768439441793,-3153.7818521,0.00028885,2]
[401987522,1768439441802,-4176.4,0.00029214,2]
[401987523,1768439441812,-3102.59192466,0.00029247,45]
[401987524,1768439441825,-530.95,0.00029272,30]
[401987525,1768439441835,-168.0,0.00029346,2]
[401987526,1768439441846,-168.0,0.00029436,2]
[401987527,1768439441857,-1000.0,0.000296,2]
[401987528,1768439441867,-168.0,0.00029614,7]
[401987529,1768439441878,-1075.44369593,0.00029651,2]
[401987530,1768439441888,-978.0,0.00029762,2]
[401987531,1768439441899,-168.0,0.00029773,7]
[401987532,1768439441908,-504.0,0.00029848,4]
[401987533,1768439441918,-168.0,0.00029853,2]
[401987534,1768439441928,-703.7038497,0.00029931,2]
[401987535,1768439441938,-516.66623108,0.00029999,2]
[401987536,1768439441947,-515.22,0.0003,2]
[401987537,1768439441956,-980.0,0.0003001,7]
[401987538,1768439441966,-200.0,0.000301,2]
[401987539,1768439441975,-168.0,0.00030103,2]
[401987540,1768439441985,-2000.0,0.000303,2]
[401987541,1768439441995,-200.0,0.00030401,2]
[401987542,1768439442004,-978.0,0.00030472,7]
[401987543,1768439442014,-980.0,0.00030472,2]
[401987544,1768439442023,-168.0,0.0003055,2]
[401987545,1768439442033,-3102.59192466,0.00030577,50]
[401987546,1768439442042,-200.0,0.00030705,2]
[401987547,1768439442052,-3503.45,0.00030866,2]
[401987548,1768439442063,-168.0,0.00030929,7]
[401987549,1768439442074,-168.0,0.00030969,2]
[401987550,1768439442083,-168.0,0.00030989,2]
[401987551,1768439442093,-200.0,0.00031012,2]
[401987552,1768439442103,-25478.26317983,0.00031059,2]
[401987553,1768439442113,-168.0,0.00031061,2]
[401987554,1768439442123,-168.0,0.00031061,2]
[401987555,1768439442133,-168.0,0.0003108,2]
[401987556,1768439442142,-18680.5713333,0.00031114,2]
[401987557,1768439442152,-978.0,0.00031174,2]
[401987558,1768439442161,-504.0,0.00031203,6]
[401987559,1768439442170,-168.0,0.0003121,2]
[401987560,1768439442181,-168.0,0.00031217,2]
[401987561,1768439442190,-500.0,0.00031235,30]
[401987562,1768439442200,-500.0,0.00031235,30]
[401987563,1768439442210,-168.0,0.00031317,2]
[401987564,1768439442219,-200.0,0.00031322,2]
[401987565,1768439442229,-4176.4,0.00031496,2]
[401987566,1768439442238,-515.22,0.000315,2]
[401987567,1768439442248,-1095.11627938,0.00031531,2]
[401987568,1768439442257,-226.14,0.00031834,2]
[401987569,1768439442266,-3102.59192466,0.00031907,55]
[401987570,1768439442275,-2422.3154207,0.00031942,2]
[401987571,1768439442284,-169.52470439,0.00032,120]
[401987572,1768439442293,-322.6107,0.00032235,2]
[401987573,1768439442302,-500.0,0.00032235,2]
[401987574,1768439442311,-250.0,0.00032235,2]
[401987575,1768439442321,-500.0,0.00032235,2]
[401987576,1768439442329,-250.0,0.00032235,2]
[401987577,1768439442338,-500.0,0.00032235,2]
[401987578,1768439442347,-250.0,0.00032235,2]
[401987579,1768439442355,-500.0,0.00032235,2]
[401987580,1768439442364,-500.0,0.00032235,2]
[401987581,1768439442374,-500.0,0.00032235,2]
[401987582,1768439442387,-174.61919141,0.00032235,2]
[401987583,1768439442396,-500.0,0.00032235,2]
[401987584,1768439442405,-500.0,0.00032235,2]
[401987585,1768439442414,-500.0,0.00032235,2]
[401987586,1768439442425,-250.0,0.00032235,2]
[401987587,1768439442434,-500.0,0.00032235,2]
[401987588,1768439442443,-250.0,0.00032235,2]
[401987589,1768439442453,-500.0,0.00032235,2]
[401987590,1768439442464,-250.0,0.00032235,2]
[401987591,1768439442473,-250.0,0.00032235,2]
[401987592,1768439442483,-250.0,0.00032235,2]
[401987593,1768439442493,-250.0,0.00032235,2]
[401987594,1768439442502,-594.17266375,0.00032235,2]
[401987595,1768439442511,-250.0,0.00032235,2]
[401987596,1768439442520,-250.0,0.00032235,2]
[401987597,1768439442529,-250.0,0.00032235,2]
[401987599,1768439442539,-250.0,0.00032235,2]
[401987600,1768439442548,-250.0,0.00032235,2]
[401987601,1768439442557,-250.0,0.00032235,2]
[401987602,1768439442567,-250.0,0.00032235,2]
[401987603,1768439442576,-250.0,0.00032235,2]
[401987604,1768439442586,-250.0,0.00032235,2]
[401987607,1768439442595,-250.0,0.00032235,2]
[401987609,1768439442605,-250.0,0.00032235,2]
[401987610,1768439442613,-250.0,0.00032235,2]
[401987611,1768439442623,-250.0,0.00032235,2]
[401987612,1768439442632,-250.0,0.00032235,2]
[401987613,1768439442642,-250.0,0.00032235,2]
[401987614,1768439442651,-250.0,0.00032235,2]
[401987615,1768439442661,-250.0,0.00032235,2]
[401987616,1768439442670,-250.0,0.00032235,2]
[401987617,1768439442680,-250.0,0.00032235,2]
[401987618,1768439442689,-250.0,0.00032235,2]
[401987619,1768439442699,-250.0,0.00032235,2]
[401987620,1768439442709,-250.0,0.00032235,2]
[401987622,1768439442718,-500.0,0.00032235,2]
[401987624,1768439442727,-250.0,0.00032235,2]
[401987625,1768439442737,-500.0,0.00032235,2]
[401987626,1768439442746,-250.0,0.00032235,2]
[401987627,1768439442755,-500.0,0.00032235,2]
[401987629,1768439442765,-250.0,0.00032235,2]
[401987631,1768439442774,-500.0,0.00032235,2]
[401987633,1768439442783,-250.0,0.00032235,2]
[401987635,1768439442792,-500.0,0.00032235,2]
[401987637,1768439442801,-250.0,0.00032235,2]
[401987638,1768439442810,-500.0,0.00032235,2]
[401987639,1768439442821,-500.0,0.00032235,2]
[401987640,1768439442830,-500.0,0.00032235,2]
[401987641,1768439442839,-500.0,0.00032235,2]
[401987642,1768439442849,-500.0,0.00032235,2]
[401987644,1768439442859,-500.0,0.00032235,2]
[401987646,1768439442868,-250.0,0.00032235,2]
[401987647,1768439442878,-500.0,0.00032235,2]
[401987648,1768439442887,-500.0,0.00032235,2]
[401987649,1768439442897,-500.0,0.00032235,2]
[401987650,1768439442906,-500.0,0.00032235,2]
[401987651,1768439442915,-250.0,0.00032235,2]
[401987652,1768439442923,-500.0,0.00032235,2]
[401987653,1768439442933,-500.0,0.00032235,2]
[401987654,1768439442942,-250.0,0.00032235,2]
[401987655,1768439442951,-250.0,0.00032235,2]
[401987656,1768439442960,-500.0,0.00032235,2]
[401987657,1768439442969,-250.0,0.00032235,2]
[401987658,1768439442979,-250.0,0.00032235,2]
[401987659,1768439442988,-500.0,0.00032235,2]
[401987660,1768439442998,-250.0,0.00032235,2]
[401987661,1768439443007,-250.0,0.00032235,2]
[401987662,1768439443016,-500.0,0.00032235,2]
[401987663,1768439443026,-721.12765535,0.00032235,2]
[401987664,1768439443035,-250.0,0.00032235,2]
[401987665,1768439443044,-250.0,0.00032235,2]
[401987666,1768439443054,-500.0,0.00032235,2]
[401987667,1768439443063,-250.0,0.00032235,2]
[401987668,1768439443073,-250.0,0.00032235,2]
[401987669,1768439443083,-574.12855637,0.00032235,2]
[401987670,1768439443092,-500.0,0.00032235,2]
[401987671,1768439443101,-250.0,0.00032235,2]
[401987672,1768439443111,-250.0,0.00032235,2]
[401987673,1768439443120,-250.0,0.00032235,2]
[401987674,1768439443130,-250.0,0.00032235,2]
[401987675,1768439443139,-250.0,0.00032235,2]
[401987676,1768439443149,-250.0,0.00032235,2]
[401987677,1768439443158,-250.0,0.00032235,2]
[401987678,1768439443167,-250.0,0.00032235,2]
[401987679,1768439443176,-250.0,0.00032235,2]
[401987680,1768439443185,-250.0,0.00032235,2]
[401987681,1768439443194,-250.0,0.00032235,2]
[401987682,1768439443203,-250.0,0.00032235,2]
[401987683,1768439443212,-250.0,0.00032235,2]
[401987684,1768439443221,-250.0,0.00032235,2]
[401987685,1768439443231,-250.0,0.00032235,2]
[401987686,1768439443240,-250.0,0.00032235,2]
[401987687,1768439443249,-250.0,0.00032235,2]
[401987688,1768439443258,-620.0,0.00032235,2]
[401987689,1768439443268,-250.0,0.00032235,2]
[401987690,1768439443276,-1239.0,0.00032235,2]
[401987691,1768439443286,-250.0,0.00032235,2]
[401987692,1768439443295,-757.0,0.00032235,2]
[401987693,1768439443304,-250.0,0.00032235,2]
[401987694,1768439443314,-250.0,0.00032235,2]
[401987695,1768439443324,-1000.0,0.00032235,2]
[401987696,1768439443333,-1000.0,0.00032235,2]
[401987697,1768439443342,-1000.0,0.00032235,2]
[401987698,1768439443352,-1000.0,0.00032235,2]
[401987700,1768439443361,-1000.0,0.00032235,2]
[401987702,1768439443371,-1000.0,0.00032235,2]
[401987703,1768439443384,-1000.0,0.00032235,2]
[401987704,1768439443394,-1000.0,0.00032235,2]
[401987705,1768439443403,-1000.0,0.00032235,2]
[401987707,1768439443412,-1000.0,0.00032235,2]
[401987708,1768439443421,-1000.0,0.00032235,2]
[401987709,1768439443431,-500.0,0.00032316,7]
[401987710,1768439443440,-226.14,0.00032346,2]
[401987711,1768439443449,-504.0,0.00032559,7]
[401987712,1768439443459,-181.08010149,0.00032783,2]
[401987714,1768439443468,-595.37131296,0.00032783,2]
[401987716,1768439443477,-500.0,0.00032849,2]
[401987717,1768439443487,-226.14,0.00032858,2]
[401987718,1768439443497,-500.0,0.00032876,30]
[401987719,1768439443506,-162.46455637,0.00032877,2]
[401987721,1768439443514,-1103.0,0.00032877,2]
[401987722,1768439443523,-758.84,0.000329,14]
[401987723,1768439443532,-1103.0,0.00032932,2]
[401987724,1768439443541,-1103.0,0.00032987,2]
[401987725,1768439443551,-633.0,0.00033,120]
[401987726,1768439443560,-1103.0,0.00033041,2]
[401987727,1768439443570,-1103.0,0.00033096,2]
[401987728,1768439443579,-1103.0,0.00033151,2]
[401987729,1768439443589,-1103.0,0.00033206,2]
[401987730,1768439443598,-3102.59192466,0.00033238,59]
[401987731,1768439443608,-1103.0,0.00033261,2]
[401987732,1768439443616,-1103.0,0.00033315,2]
[401987733,1768439443626,-187.78006525,0.00033331,2]
[401987734,1768439443636,-617.40005154,0.00033331,2]
[401987735,1768439443645,-1103.0,0.0003337,2]
[401987736,1768439443655,-1103.0,0.00033425,2]
[401987737,1768439443664,-1103.0,0.0003348,2]
[401987738,1768439443673,-186.63,0.00033495,2]
[401987739,1768439443682,-1103.0,0.00033535,2]
[401987740,1768439443692,-1103.0,0.00033589,2]
[401987741,1768439443701,-334.5472959,0.00033604,2]
[401987742,1768439443711,-642.94,0.00033604,2]
[401987743,1768439443720,-1103.0,0.00033644,2]
[401987744,1768439443729,-923.791,0.00033698,2]
[401987745,1768439443739,-1209.187,0.00033698,2]
[401987746,1768439443748,-1103.0,0.00033699,2]
[401987747,1768439443758,-519.47813948,0.00033752,2]
[401987748,1768439443768,-1103.0,0.00033754,2]
[401987749,1768439443778,-151.0,0.00033754,31]
[401987750,1768439443787,-151.0,0.00033754,31]
[401987751,1768439443796,-186.63,0.00033761,2]
[401987752,1768439443806,-4176.4,0.00033778,5]
[401987753,1768439443815,-2438.0,0.00033787,2]
[401987754,1768439443825,-4822.0,0.00033787,2]
[401987755,1768439443835,-6557.0,0.00033787,2]
[401987756,1768439443844,-1103.0,0.00033809,2]
[401987757,1768439443853,-1103.0,0.00033863,2]
[401987758,1768439443863,-211.52064184,0.00033879,2]
[401987759,1768439443872,-640.24385345,0.00033879,2]
[401987760,1768439443882,-504.0,0.00033914,9]
[401987761,1768439443892,-1103.0,0.00033918,2]
[401987762,1768439443903,-1103.0,0.00033973,2]
[401987763,1768439443912,-14049.3180746,0.00033992,2]
[401987764,1768439444750,-151.0,0.00016371,2]
[401987765,1768439444759,-316.20502933,0.00033992,2]
[401987766,1768439444770,-2583.6275441,0.00033992,2]